lending/lending_fUSD_20251124
["ID","MTS","AMOUNT","RATE_DAILY","PERIOD"]
[394803121,1763967048689,-1795.75255149,0.00038557,4]
[394803122,1763967048698,-4764.06606914,0.00038567,2]
[394803123,1763967048707,-168.49919826,0.00038567,15]
[394803124,1763967048717,-1990.44,0.00038584,120]
[394803125,1763967048727,-1000.0,0.00038599,3]
[394803126,1763967048736,-500.0,0.00038629,8]
[394803127,1763967048745,-1554.11,0.00038629,2]
[394803128,1763967048754,-897.72,0.0003863,8]
[394803129,1763967048763,-500.0,0.0003863,120]
[394803130,1763967048771,-1000.0,0.00038635,3]
[394803131,1763967048781,-1000.0,0.00038659,3]
[394803132,1763967048790,-537.4478993,0.0003866,8]
[394803133,1763967048799,-500.0,0.0003866,8]
[394803134,1763967048808,-464.98531,0.0003866,2]
[394803135,1763967048817,-1795.75255149,0.0003869,4]
[394803136,1763967048826,-1990.44,0.00038693,120]
[394803137,1763967048834,-1000.0,0.00038699,3]
[394803138,1763967048843,-12896.4149,0.000387,2]
[394803139,1763967048852,-1000.0,0.000387,2]
[394803140,1763967048861,-151.0,0.000387,120]
[394803141,1763967048871,-195.578902,0.000387,120]
[394803142,1763967048880,-195.578902,0.000387,120]
[394803143,1763967048888,-195.578902,0.000387,120]
[394803144,1763967048898,-195.578902,0.000387,120]
[394803145,1763967048908,-151.0,0.000387,120]
[394803146,1763967048917,-151.0,0.000387,120]
[394803147,1763967048926,-151.0,0.000387,120]
[394803148,1763967048935,-151.0,0.000387,120]
[394803149,1763967048944,-151.0,0.000387,120]
[394803150,1763967048954,-345.462357,0.000387,120]
[394803151,1763967048963,-345.462357,0.000387,120]
[394803152,1763967048973,-345.462357,0.000387,120]
[394803153,1763967048982,-345.462357,0.000387,120]
[394803154,1763967048992,-151.0,0.000387,90]
[394803155,1763967049002,-151.0,0.000387,90]
[394803156,1763967049011,-418.66500162,0.000387,2]
[394803157,1763967049020,-500.0,0.00038721,7]
[394803158,1763967049029,-500.0,0.00038721,7]
[394803159,1763967049039,-500.0,0.00038721,7]
[394803160,1763967049048,-500.0,0.00038721,7]
[394803161,1763967049058,-500.0,0.00038721,7]
[394803162,1763967049067,-500.0,0.00038721,7]
[394803163,1763967049077,-500.0,0.00038721,7]
[394803164,1763967049086,-500.0,0.00038721,7]
[394803165,1763967049096,-500.0,0.00038721,7]
[394803166,1763967049106,-500.0,0.00038721,7]
[394803167,1763967049116,-500.0,0.00038721,7]
[394803168,1763967049125,-500.0,0.00038721,7]
[394803169,1763967049135,-500.0,0.00038721,7]
[394803170,1763967049145,-500.0,0.00038721,7]
[394803171,1763967049156,-500.0,0.00038721,7]
[394803172,1763967049165,-500.0,0.00038721,7]
[394803173,1763967049174,-500.0,0.00038721,7]
[394803174,1763967049184,-500.0,0.00038721,7]
[394803175,1763967049193,-500.0,0.00038721,7]
[394803176,1763967049202,-500.0,0.00038721,7]
[394803177,1763967049212,-568.34249325,0.00038721,7]
[394803178,1763967049221,-500.0,0.00038721,7]
[394803179,1763967049230,-500.0,0.00038721,7]
[394803180,1763967049239,-500.0,0.00038721,7]
[394803181,1763967049248,-1000.0,0.00038721,3]
[394803182,1763967049258,-1795.75255149,0.00038778,4]
[394803183,1763967049267,-8599.7505468,0.00038788,2]
[394803184,1763967049276,-164.3958809,0.00038788,2]
[394803185,1763967049286,-1795.75255149,0.0003879,4]
[394803186,1763967049299,-3250.33,0.00038797,8]
[394803187,1763967049309,-500.0,0.00038797,8]
[394803188,1763967049323,-500.0,0.00038797,8]
[394803189,1763967049334,-500.0,0.00038798,8]
[394803190,1763967049344,-500.0,0.00038798,8]
[394803191,1763967049353,-500.0,0.00038798,8]
[394803192,1763967049362,-500.0,0.00038798,8]
[394803193,1763967049374,-1251.15,0.00038798,8]
[394803194,1763967049383,-1813.73,0.00038798,8]
[394803195,1763967049391,-689.44,0.00038798,8]
[394803196,1763967049402,-500.0,0.00038798,2]
[394803197,1763967049411,-500.0,0.00038798,8]
[394803198,1763967049420,-391.50377355,0.00038798,8]
[394803199,1763967049430,-500.0,0.00038798,8]
[394803200,1763967049439,-1000.0,0.00038799,2]
[394803201,1763967049448,-97914.10647507,0.000388,2]
[394803202,1763967049458,-409105.88977365,0.000388,2]
[394803203,1763967049467,-605.10153711,0.000388,7]
[394803204,1763967049477,-500.0,0.000388,7]
[394803205,1763967049490,-800.0,0.000388,7]
[394803206,1763967049504,-195.578902,0.000388,120]
[394803207,1763967049514,-195.578902,0.000388,120]
[394803208,1763967049524,-195.578902,0.000388,120]
[394803209,1763967049533,-195.578902,0.000388,120]
[394803210,1763967049543,-151.0,0.000388,120]
[394803211,1763967049552,-151.0,0.000388,120]
[394803212,1763967049562,-151.0,0.000388,120]
[394803213,1763967049571,-157.209917,0.000388,120]
[394803214,1763967049581,-345.462357,0.000388,120]
[394803215,1763967049590,-345.462357,0.000388,120]
[394803216,1763967049600,-345.462357,0.000388,120]
[394803217,1763967049610,-345.462357,0.000388,120]
[394803218,1763967049619,-151.0,0.000388,90]
[394803219,1763967049628,-151.0,0.000388,90]
[394803220,1763967049638,-151.0,0.000388,120]
[394803221,1763967049647,-151.0,0.000388,120]
[394803222,1763967049659,-219.797811,0.000388,120]
[394803223,1763967049668,-151.0,0.000388,120]
[394803224,1763967049677,-151.0,0.000388,120]
[394803225,1763967049686,-151.0,0.000388,120]
[394803226,1763967049696,-151.0,0.000388,30]
[394803227,1763967049706,-151.0,0.000388,30]
[394803228,1763967049716,-165.048814,0.000388,120]
[394803229,1763967049725,-151.0,0.000388,120]
[394803230,1763967049734,-151.0,0.000388,120]
[394803231,1763967049744,-151.0,0.000388,120]
[394803232,1763967049754,-151.0,0.000388,120]
[394803233,1763967049763,-151.0,0.000388,120]
[394803234,1763967049773,-151.0,0.000388,120]
[394803235,1763967049782,-151.0,0.000388,120]
[394803236,1763967049792,-151.0,0.000388,120]
[394803237,1763967049802,-200.0,0.000388,2]
[394803238,1763967049811,-500.0,0.00038802,8]
[394803239,1763967049822,-568.85,0.00038802,8]
[394803240,1763967049832,-566.15311122,0.00038802,8]
[394803241,1763967049842,-1571.63,0.00038802,8]
[394803242,1763967049852,-500.0,0.00038802,8]
[394803243,1763967049862,-500.0,0.00038802,8]
[394803244,1763967049872,-600.0,0.00038809,30]
[394803245,1763967049882,-1990.44,0.00038827,120]
[394803246,1763967049893,-3255.041,0.00038888,30]
[394803247,1763967049903,-3264.26574073,0.00038888,2]
[394803248,1763967049912,-380.53054805,0.000389,120]
[394803249,1763967049922,-4764.06606914,0.000389,2]
[394803250,1763967049931,-168.49919826,0.000389,15]
[394803251,1763967049941,-248.71531821,0.00038902,30]
[394803252,1763967049950,-239.84119403,0.00038903,30]
[394803253,1763967049960,-500.0,0.00038903,8]
[394803254,1763967049969,-1554.11,0.00038903,2]
[394803255,1763967049978,-897.72,0.00038904,8]
[394803256,1763967049988,-504.88810002,0.00038904,120]
[394803257,1763967049997,-500.0,0.00038934,8]
[394803258,1763967050007,-246.0,0.00038952,2]
[394803259,1763967050017,-404.89,0.00038962,2]
[394803260,1763967050027,-1990.44,0.00038999,120]
[394803261,1763967050037,-256.49523719,0.00039,120]
[394803262,1763967050047,-9691.86301377,0.00039,2]
[394803263,1763967050057,-500.0,0.00039,60]
[394803264,1763967050067,-16572.99542611,0.00039,120]
[394803265,1763967050077,-246.0,0.00039062,2]
[394803266,1763967050086,-1500.0,0.00039068,5]
[394803267,1763967050096,-3250.33,0.00039071,8]
[394803268,1763967050106,-500.0,0.00039071,8]
[394803269,1763967050116,-500.0,0.00039071,8]
[394803270,1763967050125,-500.0,0.00039072,8]
[394803271,1763967050134,-500.0,0.00039072,8]
[394803272,1763967050143,-500.0,0.00039072,8]
[394803273,1763967050153,-500.0,0.00039072,8]
[394803274,1763967050163,-1251.15,0.00039072,8]
[394803275,1763967050173,-1813.73,0.00039072,8]
[394803276,1763967050183,-689.44,0.00039072,8]
[394803277,1763967050192,-500.0,0.00039072,2]
[394803278,1763967050201,-500.0,0.00039072,8]
[394803279,1763967050211,-500.0,0.00039072,8]
[394803280,1763967050220,-500.0,0.00039076,8]
[394803281,1763967050230,-568.85,0.00039076,8]
[394803282,1763967050240,-1571.63,0.00039076,8]
[394803283,1763967050252,-500.0,0.00039076,8]
[394803284,1763967050262,-500.0,0.00039076,8]
[394803285,1763967050272,-168.83545478,0.00039087,2]
[394803286,1763967050292,-25000.0,0.00039169,15]
[394803287,1763967050305,-500.0,0.00039177,8]
[394803288,1763967050315,-1554.11,0.00039177,2]
[394803289,1763967050326,-897.72,0.00039178,8]
[394803290,1763967050337,-500.0,0.00039208,8]
[394803291,1763967050348,-4764.06606914,0.00039233,2]
[394803292,1763967050358,-168.49919826,0.00039233,15]
[394803293,1763967050369,-331.0,0.00039337,7]
[394803294,1763967050378,-3250.33,0.00039345,8]
[394803295,1763967050388,-500.0,0.00039345,8]
[394803296,1763967050399,-274.59905596,0.00039345,8]
[394803297,1763967050410,-500.0,0.00039346,8]
[394803298,1763967050421,-500.0,0.00039346,8]
[394803299,1763967050431,-522.35604581,0.00039346,8]
[394803300,1763967050441,-500.0,0.00039346,8]
[394803301,1763967050451,-1251.15,0.00039346,8]
[394803302,1763967050462,-1813.73,0.00039346,8]
[394803303,1763967050473,-689.44,0.00039346,8]
[394803304,1763967050484,-622.98,0.00039346,2]
[394803305,1763967050494,-500.0,0.00039346,8]
[394803306,1763967050505,-500.0,0.00039346,8]
[394803307,1763967050517,-500.0,0.0003935,8]
[394803308,1763967050531,-568.85,0.0003935,8]
[394803309,1763967050542,-1571.63,0.0003935,8]
[394803310,1763967050553,-500.0,0.0003935,8]
[394803311,1763967050563,-500.0,0.0003935,8]
[394803312,1763967050575,-1789.65564,0.0003936,30]
[394803313,1763967050587,-1200.0,0.00039361,2]
[394803314,1763967050597,-505.0451,0.00039366,120]
[394803315,1763967050609,-500.0,0.00039366,120]
[394803316,1763967050618,-3264.26574073,0.00039391,2]
[394803317,1763967050628,-168.0,0.00039394,120]
[394803318,1763967050638,-166.75,0.00039446,2]
[394803319,1763967050648,-500.0,0.00039451,8]
[394803320,1763967050658,-1554.11,0.00039451,2]
[394803321,1763967050668,-897.72,0.00039452,8]
[394803322,1763967050679,-500.0,0.00039482,8]
[394803323,1763967050688,-168.0,0.00039501,2]
[394803324,1763967050698,-231.28369723,0.00039514,30]
[394803325,1763967050708,-168.0,0.00039534,2]
[394803326,1763967050718,-4764.06606914,0.00039567,2]
[394803327,1763967050729,-168.49919826,0.00039567,15]
[394803328,1763967050740,-299.0,0.0003959,7]
[394803329,1763967050750,-157.28534256,0.00039593,8]
[394803330,1763967050760,-2000.0,0.00039616,5]
[394803331,1763967050770,-3250.33,0.00039619,8]
[394803332,1763967050780,-500.0,0.00039619,8]
[394803333,1763967050790,-500.0,0.0003962,8]
[394803334,1763967050801,-500.0,0.0003962,8]
[394803335,1763967050811,-500.0,0.0003962,8]
[394803336,1763967050821,-1251.15,0.0003962,8]
[394803337,1763967050831,-1813.73,0.0003962,8]
[394803338,1763967050841,-689.44,0.0003962,8]
[394803339,1763967050851,-500.0,0.0003962,8]
[394803340,1763967050862,-500.0,0.0003962,8]
[394803341,1763967050872,-800.0,0.00039622,7]
[394803342,1763967050883,-500.0,0.00039624,8]
[394803343,1763967050893,-568.85,0.00039624,8]
[394803344,1763967050903,-1571.63,0.00039624,8]
[394803345,1763967050913,-500.0,0.00039624,8]
[394803346,1763967050923,-500.0,0.00039624,8]
[394803347,1763967050933,-203.23,0.00039654,2]
[394803348,1763967050942,-2238.68,0.00039666,60]
[394803349,1763967050952,-168.83545478,0.00039691,2]
[394803350,1763967050962,-500.0,0.00039725,8]
[394803351,1763967050972,-1554.11,0.00039725,2]
[394803352,1763967050982,-897.72,0.00039726,8]
[394803353,1763967050993,-166.72,0.00039736,2]
[394803354,1763967051004,-500.0,0.00039756,8]
[394803355,1763967051014,-750.0,0.0003977,20]
[394803356,1763967051025,-418.66500161,0.000398,2]
[394803357,1763967051035,-500.62,0.0003985,2]
[394803358,1763967051044,-3250.33,0.00039893,8]
[394803359,1763967051054,-500.0,0.00039893,8]
[394803360,1763967051064,-500.0,0.00039894,8]
[394803361,1763967051074,-500.0,0.00039894,8]
[394803362,1763967051085,-449.97540286,0.00039894,8]
[394803363,1763967051095,-1251.15,0.00039894,8]
[394803364,1763967051106,-1813.73,0.00039894,8]
[394803365,1763967051116,-689.44,0.00039894,8]
[394803366,1763967051127,-503.75687095,0.00039894,8]
[394803367,1763967051138,-500.0,0.00039894,8]
[394803368,1763967051148,-3264.26574073,0.00039894,15]
[394803369,1763967051161,-500.0,0.00039898,8]
[394803370,1763967051171,-292.970002,0.00039898,120]
[394803371,1763967051181,-568.85,0.00039898,8]
[394803372,1763967051191,-151.0,0.00039898,120]
[394803373,1763967051201,-151.0,0.00039898,120]
[394803374,1763967051211,-151.0,0.00039898,120]
[394803375,1763967051221,-151.0,0.00039898,120]
[394803376,1763967051231,-1571.63,0.00039898,8]
[394803377,1763967051241,-500.0,0.00039898,8]
[394803378,1763967051251,-500.0,0.00039898,8]
[394803379,1763967051261,-4764.06606914,0.000399,15]
[394803380,1763967051271,-168.49919826,0.000399,15]
[394803381,1763967051281,-261.67703582,0.000399,120]
[394803382,1763967051291,-500.43,0.00039988,2]
[394803383,1763967051304,-223.0315306,0.00039999,30]
[394803384,1763967051315,-500.0,0.00039999,8]
[394803385,1763967051324,-1554.11,0.00039999,2]
[394803386,1763967051336,-500.0,0.0004,120]
[394803387,1763967051346,-500.0,0.0004,120]
[394803388,1763967051356,-1023.0,0.0004,30]
[394803389,1763967051366,-200.0,0.0004,120]
[394803390,1763967051376,-2610.09,0.0004,120]
[394803391,1763967051386,-256.07200061,0.0004,30]
[394803392,1763967051395,-372.38257341,0.0004,120]
[394803393,1763967051407,-4288.79448265,0.0004,120]
[394803394,1763967051417,-1019.17301921,0.0004,30]
[394803395,1763967051427,-168.08268423,0.0004,30]
[394803396,1763967051437,-2153.55906087,0.0004,120]
[394803397,1763967051447,-500.0,0.0004,61]
[394803398,1763967051457,-2053.5459676,0.0004,120]
[394803399,1763967051467,-1000.0,0.0004,120]
[394803400,1763967051477,-1030.43,0.0004,120]
[394803401,1763967051486,-170.0,0.0004,30]
[394803402,1763967051497,-1327.5775248,0.0004,120]
[394803403,1763967051507,-163.97,0.0004,120]
[394803404,1763967051517,-195.578902,0.0004,120]
[394803405,1763967051527,-195.578902,0.0004,120]
[394803406,1763967051537,-195.578902,0.0004,120]
[394803407,1763967051547,-195.578902,0.0004,120]
[394803408,1763967051557,-151.0,0.0004,120]
[394803409,1763967051567,-151.0,0.0004,120]
[394803410,1763967051577,-151.0,0.0004,120]
[394803411,1763967051588,-897.72,0.0004,8]
[394803412,1763967051599,-345.462357,0.0004,120]
[394803413,1763967051609,-345.462357,0.0004,120]
[394803414,1763967051619,-345.462357,0.0004,120]
[394803415,1763967051629,-345.462357,0.0004,120]
[394803416,1763967051640,-151.0,0.0004,90]
[394803417,1763967051651,-151.0,0.0004,90]
[394803418,1763967051850,-188.0,0.0004,30]
[394803419,1763967051864,-500.0,0.0004003,8]
[394803420,1763967051874,-500.0,0.00040049,2]
[394803421,1763967051884,-500.0,0.00040049,2]
[394803422,1763967051894,-500.0,0.00040049,2]
[394803423,1763967051903,-926.28,0.00040049,2]
[394803424,1763967051913,-615.73,0.00040108,120]
[394803425,1763967051923,-1009.21360208,0.0004016,2]
[394803426,1763967051932,-196.15554935,0.00040164,5]
[394803427,1763967051942,-3250.33,0.00040167,8]
[394803428,1763967051952,-500.0,0.00040167,8]
[394803429,1763967051962,-500.0,0.00040168,8]
[394803430,1763967051971,-460.88292221,0.00040168,8]
[394803431,1763967051981,-1251.15,0.00040168,8]
[394803432,1763967051991,-1813.73,0.00040168,8]
[394803433,1763967052001,-689.44,0.00040168,8]
[394803434,1763967052012,-500.0,0.00040168,8]
[394803435,1763967052023,-500.0,0.00040172,8]
[394803436,1763967052035,-568.85,0.00040172,8]
[394803437,1763967052045,-1571.63,0.00040172,8]
[394803438,1763967052055,-500.0,0.00040172,8]
[394803439,1763967052065,-500.0,0.00040172,8]
[394803440,1763967052075,-750.0,0.0004018,20]
[394803441,1763967052085,-168.0,0.00040232,2]
[394803442,1763967052095,-4764.06606914,0.00040233,15]
[394803443,1763967052105,-168.49919826,0.00040233,15]
[394803444,1763967052116,-25000.0,0.00040238,15]
[394803445,1763967052125,-73512.4315502,0.00040246,21]
[394803446,1763967052135,-25000.0,0.00040247,15]
[394803447,1763967052145,-25000.0,0.00040255,15]
[394803448,1763967052155,-1200.0,0.0004026,2]
[394803449,1763967052164,-25000.0,0.00040264,15]
[394803450,1763967052174,-25000.0,0.00040273,15]
[394803451,1763967052185,-195.578902,0.00040273,120]
[394803452,1763967052194,-195.578902,0.00040273,120]
[394803453,1763967052204,-195.578902,0.00040273,120]
[394803454,1763967052214,-195.578902,0.00040273,120]
[394803455,1763967052224,-151.0,0.00040273,120]
[394803456,1763967052233,-151.0,0.00040273,120]
[394803457,1763967052242,-180.610254,0.00040273,120]
[394803458,1763967052252,-897.72,0.00040273,8]
[394803459,1763967052261,-345.462357,0.00040273,120]
[394803460,1763967052270,-345.462357,0.00040273,120]
[394803461,1763967052280,-345.462357,0.00040273,120]
[394803462,1763967052290,-345.462357,0.00040273,120]
[394803463,1763967052302,-151.0,0.00040273,90]
[394803464,1763967052311,-171.42901,0.00040273,90]
[394803465,1763967052321,-151.0,0.00040273,120]
[394803466,1763967052331,-151.0,0.00040273,120]
[394803467,1763967052340,-151.0,0.00040273,120]
[394803468,1763967052350,-239.181514,0.00040273,120]
[394803469,1763967052360,-500.0,0.00040273,8]
[394803470,1763967052370,-1554.11,0.00040273,2]
[394803471,1763967052379,-168.83545478,0.00040296,28]
[394803472,1763967052389,-170.48,0.000403,14]
[394803473,1763967052398,-500.0,0.00040304,8]
[394803474,1763967052410,-404.89,0.00040321,2]
[394803475,1763967052420,-500.0,0.00040388,2]
[394803476,1763967052430,-5567.73735584,0.00040401,6]
[394803477,1763967052440,-242.0,0.00040411,120]
[394803478,1763967052449,-331.0,0.0004043,120]
[394803479,1763967052458,-6133.89364073,0.00040438,4]
[394803480,1763967052467,-5000.0,0.00040438,2]
[394803481,1763967052477,-5000.0,0.00040438,2]
[394803482,1763967052486,-5000.0,0.00040438,5]
[394803483,1763967052496,-5000.0,0.00040438,3]
[394803484,1763967052506,-5000.0,0.00040438,2]
[394803485,1763967052516,-806.0,0.00040438,2]
[394803486,1763967052527,-3250.33,0.00040441,8]
[394803487,1763967052536,-500.0,0.00040441,8]
[394803488,1763967052545,-500.0,0.00040442,8]
[394803489,1763967052556,-1251.15,0.00040442,8]
[394803490,1763967052566,-1813.73,0.00040442,8]
[394803491,1763967052577,-689.44,0.00040442,8]
[394803492,1763967052586,-500.0,0.00040442,8]
[394803493,1763967052596,-800.0,0.00040444,7]
[394803494,1763967052605,-500.0,0.00040444,7]
[394803495,1763967052614,-500.0,0.00040446,8]
[394803496,1763967052624,-568.85,0.00040446,8]
[394803497,1763967052633,-1571.63,0.00040446,8]
[394803498,1763967052643,-500.0,0.00040446,8]
[394803499,1763967052652,-500.0,0.00040446,8]
[394803500,1763967052663,-338.96555033,0.000405,120]
[394803501,1763967052673,-292.86706682,0.000405,120]
[394803502,1763967052682,-204.26251383,0.000405,120]
[394803503,1763967052692,-161.19,0.000405,30]
[394803504,1763967052702,-1081.66,0.00040507,30]
[394803505,1763967052712,-1081.66,0.00040507,30]
[394803506,1763967052721,-1081.66,0.00040507,30]
[394803507,1763967052730,-1081.66,0.00040507,30]
[394803508,1763967052739,-897.72,0.00040547,8]
[394803509,1763967052749,-372.8553141,0.00040547,8]
[394803510,1763967052758,-1554.11,0.00040547,2]
[394803511,1763967052768,-4764.06606914,0.00040567,15]
[394803512,1763967052778,-168.49919826,0.00040567,15]
[394803513,1763967052787,-500.0,0.00040578,8]
[394803514,1763967052796,-750.0,0.0004059,20]
[394803515,1763967052806,-213.0,0.00040599,120]
[394803516,1763967052815,-195.80953239,0.00040658,120]
[394803517,1763967052824,-464.98532,0.0004066,2]
[394803518,1763967052834,-1000.0,0.000407,2]
[394803519,1763967052843,-3250.33,0.00040715,8]
[394803520,1763967052853,-500.0,0.00040715,8]
[394803521,1763967052862,-500.0,0.00040716,8]
[394803522,1763967052871,-1251.15,0.00040716,8]
[394803523,1763967052881,-1813.73,0.00040716,8]
[394803524,1763967052891,-689.44,0.00040716,8]
[394803525,1763967052900,-320.8803912,0.00040716,8]
[394803526,1763967052911,-299.0,0.00040717,120]
[394803527,1763967052920,-500.0,0.0004072,8]
[394803528,1763967052930,-568.85,0.0004072,8]
[394803529,1763967052940,-1571.63,0.0004072,8]
[394803530,1763967052949,-375.81514999,0.0004072,8]
[394803531,1763967052959,-605.43459559,0.0004072,8]
[394803532,1763967052968,-1081.66,0.00040781,30]
[394803533,1763967052977,-1081.66,0.00040781,30]
[394803534,1763967052987,-2000.0,0.00040795,3]
[394803535,1763967052996,-1994.4002,0.00040795,3]
[394803536,1763967053006,-151.0,0.00040795,120]
[394803537,1763967053015,-151.0,0.00040795,120]
[394803538,1763967053024,-151.0,0.00040795,120]
[394803539,1763967053034,-744.44274561,0.000408,120]
[394803540,1763967053043,-897.72,0.00040821,8]
[394803541,1763967053053,-345.462357,0.00040821,120]
[394803542,1763967053063,-345.462357,0.00040821,120]
[394803543,1763967053072,-345.462357,0.00040821,120]
[394803544,1763967053082,-345.462353,0.00040821,120]
[394803545,1763967053091,-151.0,0.00040821,90]
[394803546,1763967053101,-1554.11,0.00040821,2]
[394803547,1763967053110,-500.0,0.00040852,8]
[394803548,1763967053121,-500.0,0.00040899,30]
[394803549,1763967053131,-500.0,0.00040899,31]
[394803550,1763967053141,-195.578902,0.00040899,120]
[394803551,1763967053151,-195.578902,0.00040899,120]
[394803552,1763967053162,-195.578902,0.00040899,120]
[394803553,1763967053172,-195.57890485,0.00040899,120]
[394803554,1763967053182,-151.0,0.00040899,120]
[394803555,1763967053193,-187.148297,0.00040899,120]
[394803556,1763967053202,-500.0,0.00040899,30]
[394803557,1763967053212,-514.84070869,0.00040899,30]
[394803558,1763967053222,-215.0738,0.00040899,30]
[394803559,1763967053232,-500.0,0.00040899,31]
[394803560,1763967053241,-500.0,0.00040899,30]
[394803561,1763967053251,-533.88981491,0.00040899,31]
[394803562,1763967053260,-262.11431331,0.00040899,30]
[394803563,1763967053270,-500.0,0.00040899,31]
[394803564,1763967053280,-265.33285947,0.00040899,30]
[394803565,1763967053290,-500.0,0.00040899,30]
[394803566,1763967053304,-500.0,0.00040899,31]
[394803567,1763967053314,-500.0,0.00040899,30]
[394803568,1763967053324,-500.0,0.00040899,31]
[394803569,1763967053335,-200.0,0.000409,120]
[394803570,1763967053345,-520.0,0.000409,4]
[394803571,1763967053355,-4764.06606914,0.000409,15]
[394803572,1763967053364,-168.49919826,0.000409,15]
[394803573,1763967053374,-418.66500161,0.000409,120]
[394803574,1763967053384,-168.83545478,0.000409,28]
[394803575,1763967053394,-1066.56999619,0.000409,2]
[394803576,1763967053403,-263.58481814,0.00040921,13]
[394803577,1763967053414,-1000.0,0.00040922,2]
[394803578,1763967053427,-1200.0,0.00040959,2]
[394803579,1763967053437,-700.0,0.0004097,3]
[394803580,1763967053447,-700.0,0.0004097,3]
[394803581,1763967053458,-700.0,0.0004097,3]
[394803582,1763967053468,-700.0,0.0004097,3]
[394803583,1763967053477,-1200.0,0.0004097,3]
[394803584,1763967053487,-400.0,0.0004097,3]
[394803585,1763967053497,-400.0,0.0004097,3]
[394803586,1763967053507,-400.0,0.0004097,3]
[394803587,1763967053517,-400.0,0.0004097,3]
[394803588,1763967053526,-400.0,0.0004097,3]
[394803589,1763967053536,-150.0,0.00040973,5]
[394803590,1763967053545,-3250.33,0.00040989,8]
[394803591,1763967053555,-500.0,0.00040989,8]
[394803592,1763967053565,-500.0,0.0004099,8]
[394803593,1763967053575,-1251.15,0.0004099,8]
[394803594,1763967053584,-1813.73,0.0004099,8]
[394803595,1763967053593,-689.44,0.0004099,8]
[394803596,1763967053603,-500.0,0.00040994,8]
[394803597,1763967053614,-568.85,0.00040994,8]
[394803598,1763967053623,-1571.63,0.00040994,8]
[394803599,1763967053634,-500.0,0.00040997,30]
[394803600,1763967053643,-500.0,0.00040997,30]
[394803601,1763967053653,-496.47127164,0.00040997,30]
[394803602,1763967053663,-207.4,0.00040997,30]
[394803603,1763967053672,-500.0,0.00040997,30]
[394803604,1763967053682,-623.58710448,0.00040997,30]
[394803605,1763967053691,-250.0,0.00040997,30]
[394803606,1763967053701,-500.0,0.00040997,30]
[394803607,1763967053710,-264.02701306,0.00040997,30]
[394803608,1763967053720,-500.0,0.00040997,30]
[394803609,1763967053730,-500.0,0.00040998,30]
[394803610,1763967053740,-500.0,0.00040998,31]
[394803611,1763967053749,-500.0,0.00040998,41]
[394803612,1763967053758,-500.0,0.00040998,30]
[394803613,1763967053767,-250.0,0.00040998,30]
[394803614,1763967053777,-445.202766,0.00040998,30]
[394803615,1763967053786,-250.0,0.00040998,30]
[394803616,1763967053796,-500.0,0.00040998,31]
[394803617,1763967053805,-500.0,0.00040998,30]
[394803618,1763967053814,-250.0,0.00040998,31]
[394803619,1763967053823,-461.67526834,0.00040998,31]
[394803620,1763967053833,-250.0,0.00040998,31]